bitfinex/quotes_ETHUSD_20241223
["timestamp","ask_amount","ask_price","bid_price","bid_amount"]
[1734952835034,2.98782,3347.0,3346.0,0.77591297]
[1734952835232,1.11850604,3347.8,3346.2,0.6628]
[1734952835464,1.11850604,3347.8,3346.6,0.6628]
[1734952835465,0.31290604,3347.8,3346.6,0.6628]
[1734952835630,3.12906036,3347.9,3346.6,0.6628]
[1734952835976,2.98716,3347.7,3346.7,0.11282493]
[1734952836278,2.98716,3347.7,3346.8,0.6628]
[1734952836474,2.98723,3347.6,3346.8,0.6628]
[1734952836786,2.98723,3347.6,3346.9,0.11250424]
[1734952836981,2.98685,3348.1,3346.9,0.11250424]
[1734952837145,2.98747,3347.4,3346.9,0.11250424]
[1734952837469,2.98752,3347.3,3346.9,0.0840837]
[1734952837674,2.9873,3347.5,3346.9,0.11155689]
[1734952837973,2.98718,3347.7,3347.0,0.6628]
[1734952838186,2.98714,3347.7,3347.0,0.6628]
[1734952838343,2.98714,3347.7,3347.1,0.11155689]
[1734952838783,0.378175,3348.0,3347.1,0.11155689]
[1734952838985,2.98696,3347.9,3347.1,0.11155689]
[1734952839200,0.61046171,3348.5,3347.3,0.55]
[1734952839363,2.9861,3348.9,3347.4,0.6628]
[1734952839552,2.9861,3348.9,3347.4,0.77189054]
[1734952839746,2.98646,3348.5,3347.4,0.77189054]
[1734952839946,2.98658,3348.4,3347.5,0.6628]
[1734952840694,2.98658,3348.4,3347.6,0.10909054]
[1734952840898,3.61053,3349.5,3348.3,0.6628]
[1734952841051,3.61053,3349.5,3348.3,3.6628]
[1734952841391,2.98562,3349.4,3348.5,0.6628]
[1734952841601,0.361062,3349.3,3348.5,0.6628]
[1734952841829,2.98575,3349.3,3348.5,0.6628]
[1734952841963,2.98615,3348.8,3348.6,0.108731]
[1734952842168,2.98598,3349.0,3348.6,0.108731]
[1734952842378,2.98598,3349.0,3348.5,0.6628]
[1734952842763,2.98598,3349.0,3348.6,0.10836505]
[1734952842974,0.298598,3348.9,3348.6,0.10836505]
[1734952843163,3.284698,3348.9,3348.5,0.6628]
[1734952843497,3.284698,3348.9,3348.6,0.10832585]
[1734952843683,3.284698,3348.9,3348.5,0.6628]
[1734952843848,3.284698,3348.9,3348.6,0.10832585]
[1734952844052,3.284698,3348.9,3348.5,0.6628]
[1734952844253,0.298598,3348.9,3348.5,0.6628]
[1734952844465,0.298598,3348.9,3348.6,0.10832585]
[1734952844669,2.98561,3349.4,3348.6,0.10832585]
[1734952844955,2.9857,3349.3,3348.5,0.6628]
[1734952845186,0.625,3349.5,3348.5,0.6628]
[1734952845383,0.625,3349.5,3348.6,0.10829971]
[1734952845658,0.739151,3349.4,3348.6,0.10829971]
[1734952846055,0.625,3349.5,3348.6,0.10829971]
[1734952846376,0.625,3349.5,3348.7,0.6628]
[1734952846702,0.625,3349.5,3348.7,0.77100825]
[1734952846873,0.625,3349.5,3348.8,0.55]
[1734952847071,0.625,3349.5,3348.9,0.6628]
[1734952847997,0.625,3349.5,3348.9,0.77100825]
[1734952848198,0.625,3349.5,3349.1,0.6628]
[1734952848702,0.625,3349.5,3349.2,0.1066336]
[1734952848860,0.625,3349.5,3349.3,0.6628]
[1734952849254,0.625,3349.5,3349.4,0.10658135]
[1734952850436,3.61052,3349.5,3349.4,0.10658135]
[1734952850602,3.971572,3349.5,3349.4,0.10658135]
[1734952850803,3.971572,3349.5,3348.9,0.6628]
[1734952851008,3.61052,3349.5,3349.4,0.10643769]
[1734952851243,0.625,3349.5,3348.9,0.6628]
[1734952851835,0.625,3349.5,3349.0,0.10643769]
[1734952852143,2.9857,3349.3,3348.9,0.6628]
[1734952852341,2.98591,3349.1,3348.2,0.6628]
[1734952852494,0.8221,3349.4,3348.2,0.6628]
[1734952852696,2.98579,3349.2,3348.2,0.6628]
[1734952853637,2.98587,3349.1,3348.2,0.6628]
[1734952854238,3.728868,3349.4,3348.4,0.6628]
[1734952854448,2.98561,3349.4,3348.4,0.6628]
[1734952855350,0.625,3349.5,3348.4,0.6628]
[1734952855957,0.625,3349.5,3348.5,0.02986174]
[1734952856252,0.625,3349.5,3348.5,0.55]
[1734952856456,0.625,3349.5,3348.6,0.6628]
[1734952856656,0.625,3349.5,3348.8,0.6628]
[1734952857222,0.625,3349.5,3349.0,0.6628]
[1734952857720,0.625,3349.5,3349.1,0.55]
[1734952858035,0.625,3349.5,3349.4,0.6628]
[1734952861234,0.625,3349.5,3349.4,0.76943359]
[1734952863865,2.98509,3350.0,3349.4,0.76943359]
[1734952864072,3.0,3350.5,3349.4,0.76943359]
[1734952864272,3.36546,3350.5,3349.4,0.76943359]
[1734952864491,2.98463,3350.5,3349.5,0.55]
[1734952864702,0.8083,3350.6,3349.6,0.6628]
[1734952864896,2.98454,3350.6,3349.6,0.6628]
[1734952865195,2.98474,3350.4,3349.7,0.10663359]
[1734952865685,0.8083,3350.9,3349.7,0.10663359]
[1734952865901,2.98479,3350.4,3349.7,0.10663359]
[1734952866090,0.8083,3350.9,3349.7,0.10663359]
[1734952866299,4.487547,3350.9,3349.7,0.10663359]
[1734952867092,3.0,3350.7,3349.7,0.10663359]
[1734952867303,2.98467,3350.5,3349.7,0.10663359]
[1734952867856,2.98483,3350.3,3349.7,0.10663359]
[1734952868229,2.98525,3349.8,3349.7,0.10663359]
[1734952868357,2.98515,3350.0,3349.7,0.10663359]
[1734952868699,2.98533,3349.8,3349.3,0.6628]
[1734952868864,0.7758,3350.1,3349.3,0.6628]
[1734952869069,1.151876,3350.1,3349.3,0.6628]
[1734952869265,2.98534,3349.7,3349.3,0.6628]
[1734952869593,2.98507,3350.0,3348.8,0.6628]
[1734952870003,2.98543,3349.6,3348.8,0.6628]
[1734952870801,2.9852,3349.9,3348.8,0.6628]
[1734952871004,2.98585,3349.2,3348.0,0.6628]
[1734952871299,2.98579,3349.2,3348.1,0.6926601]
[1734952871502,2.98579,3349.2,3348.1,0.6628]
[1734952871794,2.9859,3349.1,3348.1,9.6428]
[1734952871982,2.9859,3349.1,3348.2,1.54171944]
[1734952872583,2.9859,3349.1,3348.3,0.6628]
[1734952873906,0.7826,3349.8,3348.3,0.6628]
[1734952874105,2.98599,3349.0,3348.3,0.6628]
[1734952874304,0.7617,3349.6,3348.3,0.6628]
[1734952874463,2.98603,3349.0,3348.3,0.6628]
[1734952874805,2.98615,3348.8,3348.3,0.6628]
[1734952874956,0.7617,3348.8,3348.0,0.6628]
[1734952875157,3.0,3348.5,3347.7,0.6628]
[1734952875362,2.98682,3348.1,3347.7,0.6628]
[1734952875557,6.36264,3348.5,3346.8,2.98792]
[1734952875558,0.7617,3348.4,3346.8,0.6628]
[1734952875779,2.98659,3348.3,3346.8,0.6628]
[1734952875979,0.7617,3348.4,3346.8,0.6628]
[1734952876159,2.98648,3348.5,3347.2,0.6628]
[1734952876363,0.7617,3348.8,3347.4,0.6628]
[1734952876364,3.0,3348.6,3347.4,0.6628]
[1734952876593,2.98653,3348.4,3347.5,0.0298687]
[1734952876757,2.98653,3348.4,3347.5,0.1002798]
[1734952876959,2.98632,3348.6,3347.6,0.6628]
[1734952877181,0.7617,3348.8,3347.6,0.6628]
[1734952877375,0.7617,3348.8,3347.7,0.09745533]
[1734952877376,2.98627,3348.7,3347.7,0.09745533]
[1734952877576,3.8059,3349.2,3347.8,0.6628]
[1734952877810,2.98632,3348.6,3347.8,1.63682553]
[1734952878311,2.9865,3348.4,3347.9,0.09745533]
[1734952878607,2.98605,3348.9,3347.9,0.09745533]
[1734952878809,2.98667,3348.3,3347.9,0.09745533]
[1734952878961,2.98637,3348.6,3347.9,0.09745533]
[1734952879163,2.98605,3348.9,3347.9,0.09745533]
[1734952879364,2.98644,3348.5,3347.9,0.09745533]
[1734952879695,2.98663,3348.3,3347.9,0.09745533]
[1734952880907,2.98685,3348.0,3347.9,0.09745533]
[1734952881263,2.98685,3348.0,3347.4,0.6628]
[1734952881462,2.98685,3348.0,3347.9,0.09745533]
[1734952881664,2.98658,3348.4,3347.4,0.6628]
[1734952881914,2.98659,3348.3,3347.4,0.6628]
[1734952882208,2.98659,3348.3,3347.5,0.09795117]
[1734952882412,2.98674,3348.2,3347.5,0.09795117]
[1734952885223,0.7701,3348.7,3347.5,0.09795117]
[1734952885387,0.4261764,3348.6,3347.5,0.09795117]
[1734952885582,2.98651,3348.4,3347.5,0.09795117]
[1734952885800,2.98661,3348.3,3347.5,0.09795117]
[1734952886174,2.98669,3348.2,3347.5,0.09795117]
[1734952886603,6.75641,3348.7,3347.5,0.09795117]
[1734952886604,2.98684,3348.1,3347.5,0.09795117]
[1734952887585,2.98687,3348.0,3347.5,0.09795117]
[1734952888606,2.98697,3347.9,3347.5,0.09795117]
[1734952888813,2.98679,3348.1,3347.5,0.09795117]
[1734952890093,2.98687,3348.0,3347.5,0.09795117]
[1734952890891,2.9867,3348.2,3347.5,0.09795117]
[1734952891334,2.98693,3348.0,3347.2,0.6628]
[1734952891539,2.98693,3348.0,3347.3,0.09813392]
[1734952892542,2.98693,3348.0,3347.4,0.6628]
[1734952892744,2.9867,3348.2,3347.4,0.6628]
[1734952893040,2.98649,3348.5,3347.5,0.6628]
[1734952893041,2.98648,3348.5,3347.5,0.6628]
[1734952893242,2.9865,3348.4,3347.6,1.0870671]
[1734952893668,2.9865,3348.4,3347.7,0.09810128]
[1734952894659,0.751,3349.0,3347.7,0.09810128]
[1734952894867,2.98663,3348.3,3347.7,0.09810128]
[1734952895964,2.98644,3348.5,3347.7,0.09810128]
[1734952896333,2.98644,3348.5,3347.8,1.01651684]
[1734952896537,2.98644,3348.5,3347.9,0.09802297]
[1734952896865,2.98617,3348.8,3348.0,0.6628]
[1734952897244,2.98603,3349.0,3348.0,0.6628]
[1734952897413,2.98586,3349.2,3348.0,0.6628]
[1734952897414,2.98605,3348.9,3348.1,0.09802297]
[1734952897614,2.98605,3348.9,3348.3,0.6628]
[1734952898163,3.0,3349.3,3348.4,0.09802297]
[1734952898381,2.98601,3349.0,3348.5,0.6628]
[1734952898925,2.98566,3349.4,3348.6,0.09802297]
[1734952899169,2.98581,3349.2,3348.6,0.09802297]
[1734952899375,2.98569,3349.3,3348.6,0.09802297]
[1734952899771,2.98582,3349.2,3348.6,0.09802297]
[1734952900671,2.98582,3349.2,3348.7,0.6628]
[1734952901094,2.98582,3349.2,3348.8,0.09731175]
[1734952901456,2.98582,3349.2,3348.7,0.6628]
[1734952902187,2.98582,3349.2,3348.8,0.09731175]
[1734952902627,2.98582,3349.2,3348.7,0.6628]
[1734952902805,2.98582,3349.2,3348.9,0.09731175]
[1734952902991,2.98606,3348.9,3348.7,0.6628]
[1734952904606,3.75408,3349.1,3348.4,0.6628]
[1734952904918,2.9869,3348.0,3347.4,0.6628]
[1734952905118,2.98667,3348.3,3347.6,0.6628]
[1734952905485,0.802,3348.4,3347.6,0.6628]
[1734952906277,2.98712,3347.7,3347.6,0.6628]
[1734952908187,2.98721,3347.6,3347.1,0.6628]
[1734952908394,2.98757,3347.2,3347.1,0.6628]
[1734952909209,2.98757,3347.2,3346.8,0.59431107]
[1734952909514,2.98801,3346.7,3346.6,0.6628]
[1734952909830,2.98801,3346.7,3346.2,0.6628]
[1734952910188,2.98836,3346.4,3346.2,0.6628]
[1734952911636,2.98827,3346.5,3346.2,0.6628]
[1734952911983,2.98782,3347.0,3346.2,0.6628]
[1734952912310,3.0,3347.6,3346.4,0.6628]
[1734952912311,2.98766,3347.1,3346.4,0.6628]
[1734952912841,3.8095,3347.8,3346.4,0.6628]
[1734952913143,2.98777,3347.0,3346.4,0.6628]
[1734952913843,2.98784,3346.9,3346.4,0.6628]
[1734952914042,2.98753,3347.3,3346.4,0.6628]
[1734952914338,3.97861316,3347.7,3346.4,0.6628]
[1734952914339,2.98814,3346.6,3346.4,0.6628]
[1734952915741,2.98795,3346.8,3346.4,0.6628]
[1734952916098,2.98773,3347.1,3346.4,0.6628]
[1734952916448,2.98779,3347.0,3346.4,0.6628]
[1734952916611,2.98756,3347.3,3346.4,0.6628]
[1734952916798,2.98756,3347.3,3346.6,0.6628]
[1734952918501,2.9872,3347.7,3346.7,0.55]
[1734952918707,2.9872,3347.7,3346.9,0.6628]
[1734952919019,2.98724,3347.6,3346.9,0.6628]
[1734952920602,2.9874,3347.4,3346.9,0.6628]
[1734952921118,2.9874,3347.4,3347.0,0.09933508]
[1734952922749,2.98722,3347.6,3347.0,0.09933508]
[1734952922955,3.0,3348.1,3347.0,0.09933508]
[1734952923140,2.98715,3347.7,3347.0,0.09933508]
[1734952923305,2.98715,3347.7,3347.1,0.6628]
[1734952923755,2.98722,3347.6,3347.2,0.09932202]
[1734952923948,2.98722,3347.6,3347.1,0.6628]
[1734952924324,2.98722,3347.6,3347.2,0.09932202]
[1734952924624,2.98742,3347.4,3347.1,0.6628]
[1734952925067,2.98749,3347.3,3347.2,0.09932202]
[1734952925579,0.7521,3348.2,3347.2,0.09932202]
[1734952925777,2.98725,3347.6,3347.2,0.09932202]
[1734952925943,0.7521,3348.2,3347.1,0.6628]
[1734952926279,2.9873,3347.5,3347.1,0.6628]
[1734952926485,2.9873,3347.5,3347.2,0.09932202]
[1734952926983,2.98748,3347.3,3347.2,0.09932202]
[1734952927684,2.98748,3347.3,3345.9,1.24098541]
[1734952927685,2.98748,3347.3,3346.0,0.6628]
[1734952927847,0.29873,3347.5,3346.0,0.6628]
[1734952927848,3.7719,3347.2,3346.0,0.6628]
[1734952928030,2.98846,3346.2,3346.1,0.09583485]
[1734952928531,3.0,3347.0,3345.6,1.24098541]
[1734952928532,0.7719,3346.3,3345.6,1.24098541]
[1734952928755,2.98846,3346.2,3346.1,0.09252412]
[1734952928941,2.98891,3345.7,3345.6,1.24098541]
[1734952929364,2.98891,3345.7,3345.6,1.33350953]
[1734952929574,2.98891,3345.7,3345.6,0.09252412]
[1734952929938,2.98913,3345.5,3345.0,0.6628]
[1734952930567,2.98855,3346.1,3345.0,0.6628]
[1734952930888,2.98884,3345.8,3345.0,0.6628]
[1734952931991,0.7719,3346.3,3345.0,0.6628]
[1734952931992,2.98859,3346.1,3345.1,0.57989007]
[1734952932281,2.98841,3346.3,3345.4,0.6628]
[1734952932449,2.98841,3346.3,3345.4,0.69268597]
[1734952932651,2.98846,3346.2,3345.4,0.6628]
[1734952932879,2.98856,3346.1,3345.4,0.6628]
[1734952933088,2.98865,3346.0,3345.4,0.6628]
[1734952933986,2.98824,3346.5,3345.4,0.6628]
[1734952933987,2.98845,3346.3,3345.4,0.6628]
[1734952934337,2.98856,3346.1,3345.4,0.6628]
[1734952936094,2.98856,3346.1,3345.5,0.09350253]
[1734952936291,0.7719,3346.7,3345.5,0.09350253]
[1734952936499,3.75996,3346.7,3345.5,0.09350253]
[1734952936711,2.98841,3346.3,3345.5,0.09350253]
[1734952938410,0.8272,3347.0,3345.7,0.6628]
[1734952938608,2.98822,3346.5,3345.7,0.6628]
[1734952939173,2.98829,3346.4,3345.8,0.09350253]
[1734952939492,2.98829,3346.4,3345.7,0.6628]
[1734952939919,2.98829,3346.4,3345.8,0.09350253]
[1734952940119,2.98846,3346.2,3345.8,0.09350253]
[1734952940490,2.98827,3346.5,3345.8,0.09350253]
[1734952940898,2.98803,3346.7,3345.8,0.09350253]
[1734952941311,2.98786,3346.9,3345.9,1.2128]
[1734952941493,2.98768,3347.1,3346.1,0.55]
[1734952941681,2.98768,3347.1,3346.3,0.6628]
[1734952942115,2.98747,3347.4,3346.4,0.55]
[1734952942427,3.11857162,3348.0,3346.4,0.55]
[1734952942428,2.9873,3347.5,3346.7,0.6628]
[1734952942594,6.91767162,3348.0,3346.7,0.6628]
[1734952942595,2.98739,3347.4,3346.7,0.6628]
[1734952942795,0.7553,3347.7,3346.7,0.6628]
[1734952942985,2.9873,3347.5,3346.8,0.09394591]
[1734952943183,2.98764,3347.2,3346.7,0.6628]
[1734952943580,2.98764,3347.2,3346.8,0.09394591]
[1734952943828,2.98764,3347.2,3346.7,0.6628]
[1734952944026,2.98761,3347.2,3346.7,0.6628]
[1734952944213,2.98761,3347.2,3346.8,0.09394591]
[1734952944524,2.98742,3347.4,3346.8,0.09394591]
[1734952944731,2.98742,3347.4,3346.7,0.6628]
[1734952945088,2.98724,3347.6,3346.8,0.09394591]
[1734952945489,2.98724,3347.6,3346.7,0.6628]
[1734952945688,2.98724,3347.6,3346.9,0.09394591]
[1734952945989,2.98713,3347.7,3347.0,0.09394591]
[1734952946186,0.7581,3348.0,3347.0,0.09394591]
[1734952946416,0.37581,3347.9,3346.7,0.6628]
[1734952946614,0.7581,3348.0,3347.1,0.09394591]
[1734952946830,0.7581,3348.0,3346.8,0.55]
[1734952947027,2.98729,3347.6,3346.8,0.55]
[1734952947235,2.98747,3347.4,3346.9,0.09394591]
[1734952947651,2.98694,3347.9,3346.7,0.6628]
[1734952947951,2.98761,3347.2,3346.7,0.6628]
[1734952948124,2.98761,3347.2,3346.8,0.09394591]
[1734952948524,2.98761,3347.2,3346.7,0.6628]
[1734952948823,2.98761,3347.2,3346.8,0.09394591]
[1734952949350,2.98761,3347.2,3346.7,0.6628]
[1734952949707,2.98761,3347.2,3346.8,0.09394591]
[1734952950256,2.98761,3347.2,3346.7,0.6628]
[1734952950618,2.9874,3347.4,3346.8,0.09394591]
[1734952951014,2.9874,3347.4,3346.7,0.6628]
[1734952951545,2.9874,3347.4,3346.8,0.09394591]
[1734952951716,2.98758,3347.2,3346.8,0.09394591]
[1734952951917,0.4119544,3347.7,3346.7,0.6628]
[1734952952157,2.98751,3347.3,3346.7,0.6628]
[1734952952367,0.33988944,3347.6,3346.8,0.09394591]
[1734952952659,2.98758,3347.2,3346.7,0.6628]
[1734952953060,2.98758,3347.2,3346.8,0.09394591]
[1734952953356,2.98761,3347.2,3346.8,0.09394591]
[1734952953529,2.98761,3347.2,3346.7,0.6628]
[1734952953718,2.98761,3347.2,3346.9,0.09394591]
[1734952953920,2.98761,3347.2,3346.7,0.6628]
[1734952954120,2.98761,3347.2,3347.0,0.09394591]
[1734952954435,2.98761,3347.2,3347.1,0.09394591]
[1734952954849,2.98761,3347.2,3346.7,0.6628]
[1734952955277,2.98761,3347.2,3346.8,0.09394591]
[1734952956646,2.98761,3347.2,3346.7,0.6628]
[1734952956984,2.98712,3347.7,3346.7,0.6628]
[1734952956985,2.98695,3347.9,3346.7,0.6628]
[1734952957201,2.98745,3347.4,3346.8,0.09343061]
[1734952959999,0.68636216,3347.8,3346.8,0.09343061]
[1734952960203,2.98694,3347.9,3346.8,0.09343061]
[1734952960509,2.98741,3347.4,3346.8,0.09343061]
[1734952961674,2.98748,3347.3,3346.8,0.09343061]
[1734952966130,2.98756,3347.3,3346.8,0.09343061]
[1734952966427,2.98783,3346.9,3346.8,0.09343061]
[1734952966631,0.7934,3347.1,3346.4,0.6628]
[1734952966831,2.98802,3346.7,3346.4,0.6628]
[1734952967035,2.98783,3346.9,3346.5,0.08972377]
[1734952967215,2.9881,3346.6,3346.5,0.08972377]
[1734952967528,2.98838,3346.3,3345.9,0.6628]
[1734952967900,2.98855,3346.1,3346.0,0.08972377]
[1734952968631,2.98839,3346.3,3346.0,0.08972377]
[1734952969138,2.98783,3346.9,3346.0,0.08972377]
[1734952969139,2.98784,3346.9,3346.0,0.08972377]
[1734952969427,2.98773,3347.1,3346.2,0.55]
[1734952969631,2.98773,3347.1,3346.3,0.6628]
[1734952969834,6.10630162,3347.1,3346.3,0.6628]
[1734952970134,6.10630162,3347.1,3346.3,0.75296727]
[1734952970432,3.11857162,3347.1,3346.3,0.75296727]
[1734952970593,2.98795,3346.8,3346.3,0.75296727]
[1734952972715,2.98778,3347.0,3346.3,0.75296727]
[1734952973296,2.98785,3346.9,3346.3,0.75296727]
[1734952973500,0.8266,3347.2,3346.3,0.75296727]
[1734952973682,2.9875,3347.3,3346.3,0.75296727]
[1734952973885,2.98764,3347.2,3346.3,0.75296727]
[1734952974087,2.9876,3347.2,3346.3,0.75296727]
[1734952974400,2.9876,3347.2,3346.4,0.6628]
[1734952974586,2.98741,3347.4,3346.5,0.6628]
[1734952974783,2.98741,3347.4,3346.5,0.75282377]
[1734952975824,2.98741,3347.4,3346.6,0.55]
[1734952976026,2.98748,3347.3,3346.7,0.08973681]
[1734952976917,2.98748,3347.3,3346.8,0.6628]
[1734952978850,3.77936,3347.7,3346.8,0.6628]
[1734952979054,2.98739,3347.4,3346.8,0.6628]
[1734952979553,2.98783,3346.9,3346.1,0.6628]
[1734952979756,2.98783,3346.9,3346.1,1.2128]
[1734952979981,2.98739,3347.4,3346.2,0.75249766]
[1734952980108,2.98739,3347.4,3346.4,0.60445018]
[1734952980310,2.98773,3347.1,3346.4,0.60445018]
[1734952980510,2.98773,3347.1,3346.5,0.6628]
[1734952980736,2.98747,3347.4,3346.5,0.75249766]
[1734952981661,2.98717,3347.7,3346.7,0.6628]
[1734952981959,2.98717,3347.7,3346.9,0.6628]
[1734952982530,2.98717,3347.7,3347.0,0.08967158]
[1734952982925,3.11857162,3348.0,3347.1,0.6628]
[1734952983131,3.11857162,3348.1,3347.4,0.55]
[1734952983432,2.98686,3348.0,3347.5,0.08924044]
[1734952984231,3.81204,3348.4,3347.5,0.08924044]
[1734952984426,3.81204,3348.4,3347.3,0.6628]
[1734952984624,2.98746,3347.4,3347.0,0.6628]
[1734952984846,2.98725,3347.6,3346.7,0.6628]
[1734952985055,2.98766,3347.1,3346.7,0.6628]
[1734952986330,2.98815,3346.6,3346.3,0.6628]
[1734952986530,2.98821,3346.5,3346.3,0.6628]
[1734952987272,0.7899,3347.1,3346.3,0.6628]
[1734952987580,2.98828,3346.4,3346.3,0.6628]
[1734952988130,2.98775,3347.0,3345.9,0.6628]
[1734952988368,2.98864,3346.0,3345.9,0.6628]
[1734952988532,2.98883,3345.8,3345.6,1.90378541]
[1734952988734,2.98891,3345.7,3345.6,1.24098541]
[1734952989533,2.98917,3345.4,3345.0,1.90378541]
[1734952990034,2.98901,3345.6,3345.0,1.90378541]
[1734952990335,2.98901,3345.6,3345.0,2.79541348]
[1734952990578,2.98901,3345.6,3345.0,1.55442807]
[1734952990881,2.98901,3345.6,3345.0,0.6628]
[1734952991750,3.0,3346.2,3345.0,0.6628]
[1734952991751,2.98881,3345.9,3345.0,0.6628]
[1734952992067,3.0,3346.1,3345.0,0.6628]
[1734952992952,2.98864,3346.0,3345.0,0.6628]
[1734952993158,2.98895,3345.7,3345.0,0.6628]
[1734952993480,2.98875,3345.9,3345.1,0.6628]
[1734952993648,2.98875,3345.9,3345.2,0.18154028]
[1734952994388,0.8303,3346.5,3345.4,0.6628]
[1734952994591,2.98855,3346.1,3345.4,0.6628]
[1734952994887,2.98849,3346.2,3345.4,0.6628]
[1734952995051,3.81702,3346.8,3345.5,0.57988733]
[1734952995253,2.98814,3346.6,3345.9,0.55]
[1734952995480,3.11857162,3347.0,3346.0,0.17628]
[1734952995789,2.98795,3346.8,3346.1,0.6628]
[1734952995939,3.11857162,3347.0,3346.1,0.6628]
[1734952996139,6.10633162,3347.0,3346.2,0.11166604]
[1734952996435,6.10633162,3347.0,3346.2,0.08178416]
[1734952996638,2.98763,3347.2,3346.3,0.6628]
[1734952996890,2.98763,3347.2,3346.4,0.69267893]
[1734952997190,2.98773,3347.1,3346.4,0.74541173]
[1734952999238,0.7635,3347.7,3346.4,0.74541173]
[1734952999239,2.98721,3347.6,3346.4,0.74541173]
[1734952999446,2.98802,3346.7,3346.4,0.74541173]
[1734953000689,2.98765,3347.2,3346.4,0.74541173]
[1734953000889,2.98801,3346.7,3346.4,0.74541173]
[1734953002520,2.98785,3346.9,3346.4,0.74541173]
[1734953003920,3.7547,3347.4,3346.4,0.74541173]
[1734953004220,0.711826,3347.3,3346.4,0.74541173]
[1734953004519,2.98798,3346.8,3346.4,0.74541173]
[1734953007485,3.0,3347.5,3346.4,0.74541173]
[1734953007689,2.98785,3346.9,3346.4,0.74541173]
[1734953009028,2.98793,3346.8,3346.4,0.74541173]
[1734953010024,2.98819,3346.5,3346.4,0.74541173]
[1734953010317,2.98819,3346.5,3346.4,0.6628]
[1734953010623,0.7584,3347.0,3346.4,0.6628]
[1734953010817,1.133001,3347.0,3346.4,0.6628]
[1734953010976,2.98805,3346.7,3346.4,0.6628]
[1734953012424,2.98779,3347.0,3346.4,0.6628]
[1734953013712,2.98784,3346.9,3346.4,0.6628]
[1734953014123,2.98767,3347.1,3346.4,0.6628]
[1734953014326,0.76,3347.3,3346.4,0.6628]
[1734953014327,3.0,3347.3,3346.4,0.6628]
[1734953014536,3.0,3347.4,3346.5,0.08143201]
[1734953014692,2.98809,3346.7,3346.5,0.08143201]
[1734953014898,2.98787,3346.9,3346.5,0.08143201]
[1734953015405,2.98757,3347.2,3346.5,0.08143201]
[1734953015744,2.98794,3346.8,3346.5,0.08143201]
[1734953017893,2.98778,3347.0,3346.5,0.08143201]
[1734953018097,2.98784,3346.9,3346.5,0.08143201]
[1734953019363,3.0,3347.4,3346.5,0.08143201]
[1734953019364,2.98766,3347.1,3346.5,0.08143201]
[1734953019512,2.98784,3346.9,3346.5,0.08143201]
[1734953019711,0.897506,3347.1,3346.4,0.6628]
[1734953020117,2.98795,3346.8,3346.4,0.6628]
[1734953022866,2.98795,3346.8,3346.5,0.08143201]
[1734953024653,0.897506,3347.1,3346.5,0.08143201]
[1734953024654,2.9881,3346.6,3346.5,0.08143201]
[1734953025063,2.9881,3346.6,3346.4,0.6628]
[1734953025360,2.98796,3346.8,3346.4,0.6628]
[1734953026639,2.98801,3346.7,3346.4,0.6628]
[1734953028478,2.98801,3346.7,3345.9,0.58757677]
[1734953028479,2.98816,3346.6,3346.1,0.6628]
[1734953028642,2.98816,3346.6,3346.5,0.0811574]
[1734953029052,2.98816,3346.6,3346.1,0.6628]
[1734953029252,2.98816,3346.6,3346.2,0.0811574]
[1734953031679,0.7673,3347.4,3346.2,0.0811574]
[1734953031982,2.98742,3347.4,3346.4,0.6628]
[1734953032187,2.98741,3347.4,3346.3,0.55]
[1734953032485,2.98741,3347.4,3346.6,0.6628]
[1734953032681,3.88587162,3347.7,3346.6,0.6926756]
[1734953032682,2.98751,3347.3,3346.6,0.6926756]
[1734953032887,2.98751,3347.3,3346.6,0.6628]
[1734953033383,2.98751,3347.3,3346.7,0.0812356]
[1734953034162,0.7673,3347.7,3346.7,0.0812356]
[1734953034683,2.98741,3347.4,3346.7,0.0812356]
[1734953035609,0.7673,3347.7,3346.7,0.0812356]
[1734953035811,2.9875,3347.3,3346.7,0.0812356]
[1734953036531,0.375437,3347.6,3346.7,0.0812356]
[1734953036815,2.98765,3347.2,3346.7,0.0812356]
[1734953038601,0.375437,3347.6,3346.7,0.0812356]
[1734953038900,2.98782,3347.0,3346.7,0.0812356]
[1734953039059,3.375437,3347.6,3346.7,0.0812356]
[1734953039259,2.98792,3346.8,3346.7,0.0812356]
[1734953039758,2.98792,3346.8,3346.7,0.08100106]
[1734953039959,0.7512,3347.1,3346.3,0.6628]
[1734953040155,0.4129917,3347.5,3346.0,0.6628]
[1734953040156,2.98845,3346.3,3346.0,0.6628]
[1734953040456,2.98828,3346.5,3346.0,0.6628]
[1734953040668,0.7512,3346.6,3346.0,0.6628]
[1734953040669,2.9883,3346.4,3346.0,0.6628]
[1734953041200,2.9883,3346.4,3346.1,0.07548355]
[1734953041366,2.98843,3346.3,3346.1,0.07548355]
[1734953041566,2.98846,3346.2,3346.1,0.07548355]
[1734953041780,0.7512,3346.6,3345.8,0.6628]
[1734953041781,2.98829,3346.4,3345.8,0.6628]
[1734953041994,2.98829,3346.4,3346.1,0.07548355]
[1734953042300,2.98829,3346.4,3345.8,0.6628]
[1734953042498,2.98829,3346.4,3346.2,0.07548355]
[1734953042671,2.98829,3346.4,3345.8,0.6628]
[1734953042877,0.7512,3346.6,3345.9,0.07548355]
[1734953043079,2.98819,3346.5,3345.9,0.07548355]
[1734953045896,2.98829,3346.4,3345.9,0.07548355]
[1734953046902,0.7512,3346.6,3345.9,0.07548355]
[1734953048004,2.98835,3346.4,3345.9,0.07548355]
[1734953048198,0.7512,3346.6,3345.9,0.07548355]
[1734953048705,2.98835,3346.4,3345.9,0.07548355]
[1734953049305,0.7512,3346.6,3345.9,0.07548355]
[1734953049519,2.98798,3346.8,3345.9,0.07548355]
[1734953049520,3.80554,3346.0,3345.9,0.07548355]